[Event "Titled Tuesday Blitz August 22 Early 2023"]
[White "Goncalves, Davi Sulzbacher"]
[Black "Harsh Suresh"]
[WhiteFideId "2154510"]
[BlackFideId "45018464"]
[WhiteElo "2471"]
[BlackElo "2876"]
[Result "0-1"]
[Round "1"]
[TimeControl "180+1"]
[Date "2023.08.22"]
[WhiteClock "0:00:01"]
[BlackClock "0:00:12"]
[Board "47"]

1. Nf3 {[%clk 0:02:59]}  g6 {[%clk 0:02:55]} 2. d4 {[%clk 0:02:59]}  Bg7 {[%clk 0:02:55]} 3. c4 {[%clk 0:02:59]}  c6 {[%clk 0:02:53]} 4. e4 {[%clk 0:02:57]}  d5 {[%clk 0:02:52]} 5. cxd5 {[%clk 0:02:52]}  cxd5 {[%clk 0:02:53]} 6. e5 {[%clk 0:02:52]}  Bg4 {[%clk 0:02:52]} 7. Qb3 {[%clk 0:02:27]}  Qc7 {[%clk 0:02:28]} 8. Nc3 {[%clk 0:02:23]}  Bxf3 {[%clk 0:02:19]} 9. gxf3 {[%clk 0:02:24]}  Nc6 {[%clk 0:02:19]} 10. Be3 {[%clk 0:02:12]}  Rd8 {[%clk 0:02:04]} 11. Nxd5 {[%clk 0:01:32]}  Qa5+ {[%clk 0:01:59]} 12. Nc3 {[%clk 0:01:33]}  Nxd4 {[%clk 0:01:49]} 13. Bxd4 {[%clk 0:01:26]}  Rxd4 {[%clk 0:01:49]} 14. Bb5+ {[%clk 0:01:11]}  Kf8 {[%clk 0:01:47]} 15. O-O {[%clk 0:01:00]}  Bxe5 {[%clk 0:01:44]} 16. Rad1 {[%clk 0:00:52]}  Nf6 {[%clk 0:01:29]} 17. Rfe1 {[%clk 0:00:48]}  Rxd1 {[%clk 0:01:24]} 18. Rxd1 {[%clk 0:00:33]}  Bxc3 {[%clk 0:01:21]} 19. bxc3 {[%clk 0:00:32]}  Kg7 {[%clk 0:01:21]} 20. Bc4 {[%clk 0:00:29]}  Qg5+ {[%clk 0:01:14]} 21. Kf1 {[%clk 0:00:27]}  Qf4 {[%clk 0:00:58]} 22. Bxf7 {[%clk 0:00:20]}  Qxf3 {[%clk 0:00:49]} 23. Bd5 {[%clk 0:00:19]}  Qf4 {[%clk 0:00:45]} 24. Qxb7 {[%clk 0:00:17]}  Re8 {[%clk 0:00:22]} 25. Bc6 {[%clk 0:00:17]}  Rf8 {[%clk 0:00:22]} 26. Bg2 {[%clk 0:00:08]}  Ng4 {[%clk 0:00:19]} 27. Qxe7+ {[%clk 0:00:03]}  Rf7 {[%clk 0:00:19]} 28. Qe2 {[%clk 0:00:04]}  Ne3+ {[%clk 0:00:16]} 29. Ke1 {[%clk 0:00:04]}  Nxd1 {[%clk 0:00:17]} 30. Kxd1 {[%clk 0:00:04]}  Qxf2 {[%clk 0:00:16]} 31. c4 {[%clk 0:00:02]}  Qd4+ {[%clk 0:00:15]} 32. Ke1 {[%clk 0:00:01]}  Qa1+ {[%clk 0:00:15]} 33. Kd2 {[%clk 0:00:02]}  Qxa2+ {[%clk 0:00:15]} 34. Kd3 {[%clk 0:00:02]}  Qxe2+ {[%clk 0:00:14]} 35. Kxe2 {[%clk 0:00:02]}  Kf6 {[%clk 0:00:14]} 36. Bd5 {[%clk 0:00:02]}  Re7+ {[%clk 0:00:13]} 37. Kd3 {[%clk 0:00:02]}  Ke5 {[%clk 0:00:14]} 38. Bg8 {[%clk 0:00:02]}  h6 {[%clk 0:00:13]} 39. Kc3 {[%clk 0:00:02]}  g5 {[%clk 0:00:14]} 40. c5 {[%clk 0:00:03]}  Re8 {[%clk 0:00:11]} 41. Kc4 {[%clk 0:00:01]}  Rxg8 {[%clk 0:00:12]} 0-1


[Site "https://www.chess.com"]

[Event "Titled Tuesday Blitz August 22 Early 2023"]
[White "Rustemov, Alexander"]
[Black "DeyanKostov"]
[WhiteFideId "4119002"]
[WhiteElo "2874"]
[BlackElo "2470"]
[Result "1/2-1/2"]
[Round "1"]
[TimeControl "180+1"]
[Date "2023.08.22"]
[WhiteClock "0:00:36"]
[BlackClock "0:00:28"]
[Board "48"]

1. d4 {[%clk 0:03:00]}  d5 {[%clk 0:02:59]} 2. c4 {[%clk 0:03:00]}  dxc4 {[%clk 0:02:59]} 3. Nf3 {[%clk 0:03:00]}  a6 {[%clk 0:02:59]} 4. e3 {[%clk 0:03:00]}  Bg4 {[%clk 0:02:59]} 5. Bxc4 {[%clk 0:02:59]}  e6 {[%clk 0:02:59]} 6. h3 {[%clk 0:02:58]}  Bh5 {[%clk 0:02:59]} 7. Nc3 {[%clk 0:02:58]}  Nf6 {[%clk 0:02:58]} 8. O-O {[%clk 0:02:54]}  Nc6 {[%clk 0:02:57]} 9. Re1 {[%clk 0:02:53]}  Bd6 {[%clk 0:02:57]} 10. g4 {[%clk 0:02:53]}  Bg6 {[%clk 0:02:56]} 11. e4 {[%clk 0:02:53]}  e5 {[%clk 0:02:52]} 12. dxe5 {[%clk 0:02:25]}  Nxe5 {[%clk 0:02:52]} 13. Nxe5 {[%clk 0:02:25]}  Bxe5 {[%clk 0:02:52]} 14. Qxd8+ {[%clk 0:02:16]}  Rxd8 {[%clk 0:02:43]} 15. f4 {[%clk 0:02:16]}  Bd4+ {[%clk 0:02:31]} 16. Kg2 {[%clk 0:02:03]}  Bxc3 {[%clk 0:02:17]} 17. bxc3 {[%clk 0:02:03]}  Bxe4+ {[%clk 0:02:18]} 18. Kf2 {[%clk 0:02:02]}  O-O {[%clk 0:02:14]} 19. g5 {[%clk 0:02:02]}  Bd5 {[%clk 0:02:12]} 20. gxf6 {[%clk 0:01:54]}  Bxc4 {[%clk 0:02:11]} 21. Be3 {[%clk 0:01:50]}  g6 {[%clk 0:01:49]} 22. Bd4 {[%clk 0:01:36]}  Be6 {[%clk 0:01:42]} 23. h4 {[%clk 0:01:35]}  h5 {[%clk 0:01:41]} 24. a4 {[%clk 0:01:28]}  Rd5 {[%clk 0:01:35]} 25. a5 {[%clk 0:01:22]}  c5 {[%clk 0:01:34]} 26. Be5 {[%clk 0:01:21]}  Rfd8 {[%clk 0:01:31]} 27. Rab1 {[%clk 0:01:19]}  R8d7 {[%clk 0:01:24]} 28. Rb6 {[%clk 0:01:18]}  Rd2+ {[%clk 0:01:13]} 29. Re2 {[%clk 0:01:18]}  Rxe2+ {[%clk 0:01:05]} 30. Kxe2 {[%clk 0:01:19]}  Bc4+ {[%clk 0:01:00]} 31. Ke3 {[%clk 0:01:17]}  Bb5 {[%clk 0:01:00]} 32. Bd6 {[%clk 0:01:12]}  Bc6 {[%clk 0:00:39]} 33. Bxc5 {[%clk 0:01:12]}  Rd5 {[%clk 0:00:38]} 34. Bb4 {[%clk 0:01:02]}  Rf5 {[%clk 0:00:38]} 35. Be7 {[%clk 0:00:59]}  Rxa5 {[%clk 0:00:38]} 36. Rb2 {[%clk 0:00:58]}  Rd5 {[%clk 0:00:35]} 37. c4 {[%clk 0:00:56]}  Rd7 {[%clk 0:00:35]} 38. c5 {[%clk 0:00:54]}  a5 {[%clk 0:00:35]} 39. Bd6 {[%clk 0:00:51]}  a4 {[%clk 0:00:35]} 40. Kd4 {[%clk 0:00:49]}  Rd8 {[%clk 0:00:35]} 41. Kc3 {[%clk 0:00:48]}  Re8 {[%clk 0:00:35]} 42. Be7 {[%clk 0:00:45]}  Ra8 {[%clk 0:00:35]} 43. Kb4 {[%clk 0:00:45]}  Rc8 {[%clk 0:00:34]} 44. Rd2 {[%clk 0:00:44]}  Ra8 {[%clk 0:00:33]} 45. Ka3 {[%clk 0:00:44]}  Rc8 {[%clk 0:00:33]} 46. Bd8 {[%clk 0:00:43]}  Ra8 {[%clk 0:00:31]} 47. Be7 {[%clk 0:00:39]}  Rc8 {[%clk 0:00:30]} 48. Bd6 {[%clk 0:00:37]}  Re8 {[%clk 0:00:28]} 49. Be7 {[%clk 0:00:36]}  Rc8 {[%clk 0:00:28]} 1/2-1/2


[Site "https://www.chess.com"]

[Event "Titled Tuesday Blitz August 22 Early 2023"]
[White "Hirneise, Jens"]
[Black "Durarbayli, Vasif"]
[WhiteFideId "24614734"]
[BlackFideId "13402935"]
[WhiteElo "2468"]
[BlackElo "2862"]
[Result "0-1"]
[Round "1"]
[TimeControl "180+1"]
[Date "2023.08.22"]
[WhiteClock "0:00:03"]
[BlackClock "0:00:44"]
[Board "51"]

1. c4 {[%clk 0:02:54]}  g6 {[%clk 0:02:53]} 2. d4 {[%clk 0:02:51]}  Bg7 {[%clk 0:02:53]} 3. Nf3 {[%clk 0:02:50]}  Nf6 {[%clk 0:02:53]} 4. g3 {[%clk 0:02:50]}  O-O {[%clk 0:02:53]} 5. Bg2 {[%clk 0:02:51]}  c5 {[%clk 0:02:53]} 6. O-O {[%clk 0:02:48]}  d6 {[%clk 0:02:51]} 7. dxc5 {[%clk 0:02:46]}  dxc5 {[%clk 0:02:51]} 8. Nc3 {[%clk 0:02:45]}  Nc6 {[%clk 0:02:48]} 9. Be3 {[%clk 0:02:38]}  Qa5 {[%clk 0:02:47]} 10. Qa4 {[%clk 0:02:36]}  Nd7 {[%clk 0:02:46]} 11. Qxa5 {[%clk 0:02:11]}  Nxa5 {[%clk 0:02:47]} 12. Nd5 {[%clk 0:02:05]}  Nxc4 {[%clk 0:02:35]} 13. Nxe7+ {[%clk 0:02:03]}  Kh8 {[%clk 0:02:35]} 14. Rac1 {[%clk 0:01:58]}  Nxe3 {[%clk 0:02:35]} 15. fxe3 {[%clk 0:01:59]}  Bxb2 {[%clk 0:02:34]} 16. Rc2 {[%clk 0:01:58]}  Bf6 {[%clk 0:02:31]} 17. Nd5 {[%clk 0:01:54]}  Bg7 {[%clk 0:02:13]} 18. Rb1 {[%clk 0:01:53]}  Rb8 {[%clk 0:02:12]} 19. Kf2 {[%clk 0:01:35]}  b6 {[%clk 0:02:12]} 20. h3 {[%clk 0:01:33]}  Bb7 {[%clk 0:02:13]} 21. Nd2 {[%clk 0:01:31]}  Bh6 {[%clk 0:02:01]} 22. Nf4 {[%clk 0:01:27]}  Rfe8 {[%clk 0:01:58]} 23. Bxb7 {[%clk 0:01:25]}  Rxb7 {[%clk 0:01:59]} 24. Nc4 {[%clk 0:01:26]}  Rbb8 {[%clk 0:01:46]} 25. Nd6 {[%clk 0:01:24]}  Rf8 {[%clk 0:01:43]} 26. Rd1 {[%clk 0:01:21]}  Nf6 {[%clk 0:01:41]} 27. Kf3 {[%clk 0:01:16]}  Kg8 {[%clk 0:01:41]} 28. e4 {[%clk 0:01:13]}  Nd7 {[%clk 0:01:39]} 29. Nc4 {[%clk 0:01:06]}  Nf6 {[%clk 0:01:34]} 30. e5 {[%clk 0:01:03]}  Bxf4 {[%clk 0:01:34]} 31. gxf4 {[%clk 0:00:48]}  Nh5 {[%clk 0:01:35]} 32. Rcd2 {[%clk 0:00:46]}  b5 {[%clk 0:01:32]} 33. Na5 {[%clk 0:00:45]}  Rb6 {[%clk 0:01:27]} 34. Rd6 {[%clk 0:00:43]}  Ng7 {[%clk 0:01:24]} 35. Nc6 {[%clk 0:00:42]}  Nf5 {[%clk 0:01:20]} 36. Rf6 {[%clk 0:00:38]}  Kg7 {[%clk 0:01:19]} 37. Nxa7 {[%clk 0:00:34]}  Rb7 {[%clk 0:01:04]} 38. Nc6 {[%clk 0:00:30]}  Ra8 {[%clk 0:01:04]} 39. Rd2 {[%clk 0:00:25]}  Ra3+ {[%clk 0:01:05]} 40. Kg2 {[%clk 0:00:22]}  b4 {[%clk 0:01:01]} 41. e4 {[%clk 0:00:14]}  Nh4+ {[%clk 0:00:55]} 42. Kf2 {[%clk 0:00:14]}  c4 {[%clk 0:00:55]} 43. Nd8 {[%clk 0:00:13]}  Rba7 {[%clk 0:00:54]} 44. Rb6 {[%clk 0:00:08]}  c3 {[%clk 0:00:51]} 45. Rc2 {[%clk 0:00:07]}  Rxa2 {[%clk 0:00:52]} 46. Rxa2 {[%clk 0:00:06]}  Rxa2+ {[%clk 0:00:52]} 47. Ke3 {[%clk 0:00:07]}  Ng2+ {[%clk 0:00:52]} 48. Kd3 {[%clk 0:00:07]}  Nxf4+ {[%clk 0:00:53]} 49. Ke3 {[%clk 0:00:06]}  c2 {[%clk 0:00:45]} 50. Rc6 {[%clk 0:00:06]}  b3 {[%clk 0:00:44]} 51. Kxf4 {[%clk 0:00:03]}  b2 {[%clk 0:00:44]} 0-1


[Site "https://www.chess.com"]

[Event "Titled Tuesday Blitz August 22 Early 2023"]
[White "Molina, Roberto Junio Brito"]
[Black "Serban, Cristian-Stefan"]
[WhiteFideId "2109450"]
[BlackFideId "1241443"]
[WhiteElo "2858"]
[BlackElo "2465"]
[Result "1-0"]
[Round "1"]
[TimeControl "180+1"]
[Date "2023.08.22"]
[WhiteClock "0:01:48"]
[BlackClock "0:00:00"]
[Board "54"]

1. d4 {[%clk 0:03:00]}  Nf6 {[%clk 0:02:45]} 2. Nf3 {[%clk 0:03:00]}  g6 {[%clk 0:02:42]} 3. e3 {[%clk 0:03:01]}  Bg7 {[%clk 0:02:43]} 4. Be2 {[%clk 0:03:01]}  O-O {[%clk 0:02:43]} 5. O-O {[%clk 0:03:02]}  d5 {[%clk 0:02:41]} 6. b4 {[%clk 0:03:02]}  a5 {[%clk 0:02:37]} 7. b5 {[%clk 0:03:02]}  c6 {[%clk 0:02:37]} 8. bxc6 {[%clk 0:03:02]}  bxc6 {[%clk 0:02:38]} 9. a4 {[%clk 0:03:00]}  Ba6 {[%clk 0:02:36]} 10. Ba3 {[%clk 0:03:00]}  Nfd7 {[%clk 0:02:30]} 11. Nbd2 {[%clk 0:02:55]}  Re8 {[%clk 0:02:25]} 12. c4 {[%clk 0:02:54]}  e5 {[%clk 0:02:19]} 13. dxe5 {[%clk 0:02:35]}  Nxe5 {[%clk 0:02:19]} 14. Nxe5 {[%clk 0:02:35]}  Bxe5 {[%clk 0:02:18]} 15. Rc1 {[%clk 0:02:33]}  d4 {[%clk 0:02:07]} 16. Nf3 {[%clk 0:02:29]}  Nd7 {[%clk 0:00:41]} 17. Nxe5 {[%clk 0:02:18]}  Nxe5 {[%clk 0:00:25]} 18. exd4 {[%clk 0:02:17]}  Nd7 {[%clk 0:00:25]} 19. Bf3 {[%clk 0:02:15]}  Qc7 {[%clk 0:00:23]} 20. Re1 {[%clk 0:02:09]}  Rxe1+ {[%clk 0:00:22]} 21. Qxe1 {[%clk 0:02:10]}  Rd8 {[%clk 0:00:16]} 22. Qe7 {[%clk 0:02:03]}  Bb7 {[%clk 0:00:10]} 23. h4 {[%clk 0:01:58]}  h5 {[%clk 0:00:09]} 24. d5 {[%clk 0:01:52]}  cxd5 {[%clk 0:00:09]} 25. cxd5 {[%clk 0:01:53]}  Qb8 {[%clk 0:00:00]} 26. Rb1 {[%clk 0:01:48]} 1-0


[Site "https://www.chess.com"]

[Event "Titled Tuesday Blitz August 22 Early 2023"]
[White "Perera Alfonso, Rene Humberto"]
[Black "Hambleton, Aman"]
[WhiteFideId "3514722"]
[BlackFideId "2606577"]
[WhiteElo "2462"]
[BlackElo "2854"]
[Result "0-1"]
[Round "1"]
[TimeControl "180+1"]
[Date "2023.08.22"]
[WhiteClock "0:00:00"]
[BlackClock "0:00:30"]
[Board "57"]

1. e4 {[%clk 0:02:58]}  c5 {[%clk 0:02:58]} 2. Nf3 {[%clk 0:02:58]}  e6 {[%clk 0:02:50]} 3. d4 {[%clk 0:02:58]}  cxd4 {[%clk 0:02:50]} 4. Nxd4 {[%clk 0:02:57]}  Nc6 {[%clk 0:02:48]} 5. Nc3 {[%clk 0:02:56]}  Qc7 {[%clk 0:02:46]} 6. g3 {[%clk 0:02:56]}  a6 {[%clk 0:02:45]} 7. Bg2 {[%clk 0:02:55]}  Nf6 {[%clk 0:02:45]} 8. Nb3 {[%clk 0:02:53]}  b5 {[%clk 0:02:41]} 9. O-O {[%clk 0:02:52]}  Bb7 {[%clk 0:02:41]} 10. f4 {[%clk 0:02:51]}  d6 {[%clk 0:02:37]} 11. g4 {[%clk 0:02:50]}  h6 {[%clk 0:01:52]} 12. a3 {[%clk 0:02:42]}  Be7 {[%clk 0:01:34]} 13. g5 {[%clk 0:02:40]}  hxg5 {[%clk 0:01:34]} 14. fxg5 {[%clk 0:02:41]}  Nd7 {[%clk 0:00:43]} 15. g6 {[%clk 0:00:00]}  Bf6 {[%clk 0:00:30]} 0-1


[Site "https://www.chess.com"]

[Event "Titled Tuesday Blitz August 22 Early 2023"]
[White "Ibrahimli, Murad"]
[Black "dodoucb"]
[WhiteFideId "13410229"]
[WhiteElo "2852"]
[BlackElo "2461"]
[Result "1-0"]
[Round "1"]
[TimeControl "180+1"]
[Date "2023.08.22"]
[WhiteClock "0:00:57"]
[BlackClock "0:00:00"]
[Board "58"]

1. e4 {[%clk 0:03:00]}  c6 {[%clk 0:03:00]} 2. Nc3 {[%clk 0:03:00]}  d5 {[%clk 0:03:00]} 3. Nf3 {[%clk 0:02:59]}  Bg4 {[%clk 0:03:01]} 4. h3 {[%clk 0:02:59]}  Bxf3 {[%clk 0:03:01]} 5. Qxf3 {[%clk 0:02:59]}  Nf6 {[%clk 0:03:01]} 6. d3 {[%clk 0:02:50]}  e6 {[%clk 0:02:53]} 7. Bd2 {[%clk 0:02:49]}  d4 {[%clk 0:02:51]} 8. Nb1 {[%clk 0:02:39]}  c5 {[%clk 0:02:49]} 9. g3 {[%clk 0:02:36]}  Nc6 {[%clk 0:02:48]} 10. Bg2 {[%clk 0:02:35]}  Rc8 {[%clk 0:02:47]} 11. O-O {[%clk 0:02:32]}  Be7 {[%clk 0:02:47]} 12. a4 {[%clk 0:02:31]}  c4 {[%clk 0:02:46]} 13. Qe2 {[%clk 0:02:28]}  cxd3 {[%clk 0:02:42]} 14. cxd3 {[%clk 0:02:29]}  Qb6 {[%clk 0:02:41]} 15. Na3 {[%clk 0:02:15]}  O-O {[%clk 0:02:28]} 16. Nc4 {[%clk 0:02:14]}  Qb3 {[%clk 0:02:27]} 17. Rfc1 {[%clk 0:02:07]}  Nd7 {[%clk 0:02:18]} 18. f4 {[%clk 0:01:58]}  e5 {[%clk 0:02:04]} 19. h4 {[%clk 0:01:52]}  Rcd8 {[%clk 0:01:11]} 20. h5 {[%clk 0:01:47]}  h6 {[%clk 0:01:04]} 21. Bh3 {[%clk 0:01:47]}  a6 {[%clk 0:00:52]} 22. Bxd7 {[%clk 0:01:29]}  Rxd7 {[%clk 0:00:52]} 23. fxe5 {[%clk 0:01:30]}  b5 {[%clk 0:00:47]} 24. axb5 {[%clk 0:01:22]}  axb5 {[%clk 0:00:48]} 25. Nb6 {[%clk 0:01:23]}  Nxe5 {[%clk 0:00:26]} 26. Nxd7 {[%clk 0:01:23]}  Nxd7 {[%clk 0:00:27]} 27. Bf4 {[%clk 0:01:20]}  Re8 {[%clk 0:00:21]} 28. Qc2 {[%clk 0:01:16]}  Qe6 {[%clk 0:00:19]} 29. Kg2 {[%clk 0:01:15]}  Qg4 {[%clk 0:00:18]} 30. Qd1 {[%clk 0:01:16]}  Qe6 {[%clk 0:00:18]} 31. Ra7 {[%clk 0:01:16]}  Bf6 {[%clk 0:00:13]} 32. Rcc7 {[%clk 0:01:16]}  Rd8 {[%clk 0:00:11]} 33. Qc2 {[%clk 0:01:07]}  Qg4 {[%clk 0:00:10]} 34. Kf2 {[%clk 0:01:03]}  Qxh5 {[%clk 0:00:09]} 35. Kg2 {[%clk 0:00:58]}  Kh7 {[%clk 0:00:07]} 36. Rxd7 {[%clk 0:00:58]}  Rc8 {[%clk 0:00:00]} 37. Rdc7 {[%clk 0:00:57]} 1-0


[Site "https://www.chess.com"]

[Event "Titled Tuesday Blitz August 22 Early 2023"]
[White "Liu, Casper"]
[Black "Maksimovic, Bojan"]
[WhiteFideId "1454153"]
[BlackFideId "14408120"]
[WhiteElo "2460"]
[BlackElo "2851"]
[Result "0-1"]
[Round "1"]
[TimeControl "180+1"]
[Date "2023.08.22"]
[WhiteClock "0:00:13"]
[BlackClock "0:00:20"]
[Board "59"]

1. e4 {[%clk 0:02:53]}  g6 {[%clk 0:03:00]} 2. h4 {[%clk 0:02:49]}  Nf6 {[%clk 0:03:00]} 3. Nc3 {[%clk 0:02:49]}  d5 {[%clk 0:03:01]} 4. exd5 {[%clk 0:02:49]}  Nxd5 {[%clk 0:03:00]} 5. Bc4 {[%clk 0:02:48]}  Nxc3 {[%clk 0:03:00]} 6. dxc3 {[%clk 0:02:49]}  Qxd1+ {[%clk 0:03:00]} 7. Kxd1 {[%clk 0:02:49]}  Nd7 {[%clk 0:02:43]} 8. Nf3 {[%clk 0:02:44]}  h6 {[%clk 0:02:39]} 9. Bf4 {[%clk 0:02:42]}  c6 {[%clk 0:02:39]} 10. Re1 {[%clk 0:02:34]}  Nb6 {[%clk 0:02:29]} 11. Bb3 {[%clk 0:02:33]}  Bg4 {[%clk 0:02:27]} 12. Ke2 {[%clk 0:02:30]}  e6 {[%clk 0:02:16]} 13. Rad1 {[%clk 0:02:29]}  Rd8 {[%clk 0:02:15]} 14. Be5 {[%clk 0:02:19]}  Rg8 {[%clk 0:02:11]} 15. a4 {[%clk 0:02:16]}  Be7 {[%clk 0:02:02]} 16. a5 {[%clk 0:02:08]}  Nd7 {[%clk 0:01:57]} 17. Bc7 {[%clk 0:01:54]}  Rc8 {[%clk 0:01:57]} 18. Bg3 {[%clk 0:01:55]}  Nc5 {[%clk 0:01:48]} 19. Rd4 {[%clk 0:01:47]}  h5 {[%clk 0:01:35]} 20. Red1 {[%clk 0:01:43]}  Nxb3 {[%clk 0:01:05]} 21. cxb3 {[%clk 0:01:42]}  Rd8 {[%clk 0:01:06]} 22. a6 {[%clk 0:01:23]}  bxa6 {[%clk 0:00:51]} 23. b4 {[%clk 0:00:51]}  f6 {[%clk 0:00:34]} 24. Rxd8+ {[%clk 0:00:46]}  Bxd8 {[%clk 0:00:35]} 25. Rd6 {[%clk 0:00:45]}  e5 {[%clk 0:00:32]} 26. Kd3 {[%clk 0:00:27]}  Bd7 {[%clk 0:00:25]} 27. Nd2 {[%clk 0:00:26]}  Be7 {[%clk 0:00:22]} 28. Nc4 {[%clk 0:00:22]}  Bxd6 {[%clk 0:00:20]} 29. Nxd6+ {[%clk 0:00:23]}  Ke7 {[%clk 0:00:21]} 30. Ne4 {[%clk 0:00:23]}  Bf5 {[%clk 0:00:21]} 31. f3 {[%clk 0:00:24]}  Rd8+ {[%clk 0:00:20]} 32. Ke3 {[%clk 0:00:24]}  Bxe4 {[%clk 0:00:21]} 33. fxe4 {[%clk 0:00:25]}  Rd1 {[%clk 0:00:21]} 34. Bf2 {[%clk 0:00:26]}  Rb1 {[%clk 0:00:21]} 35. Kf3 {[%clk 0:00:24]}  Rxb2 {[%clk 0:00:21]} 36. Bxa7 {[%clk 0:00:25]}  Ke6 {[%clk 0:00:22]} 37. Bf2 {[%clk 0:00:22]}  Rb1 {[%clk 0:00:19]} 38. Ke2 {[%clk 0:00:21]}  Rc1 {[%clk 0:00:19]} 39. Kd2 {[%clk 0:00:20]}  Rh1 {[%clk 0:00:18]} 40. Ke2 {[%clk 0:00:19]}  Ra1 {[%clk 0:00:19]} 41. Kd2 {[%clk 0:00:18]}  a5 {[%clk 0:00:19]} 42. bxa5 {[%clk 0:00:18]}  Rxa5 {[%clk 0:00:19]} 43. Ke2 {[%clk 0:00:16]}  Ra4 {[%clk 0:00:20]} 44. Kd3 {[%clk 0:00:16]}  f5 {[%clk 0:00:20]} 45. exf5+ {[%clk 0:00:15]}  Kxf5 {[%clk 0:00:21]} 46. Be3 {[%clk 0:00:13]}  Rxh4 {[%clk 0:00:20]} 0-1


[Site "https://www.chess.com"]

[Event "Titled Tuesday Blitz August 22 Early 2023"]
[White "Swicarz, Maciej"]
[Black "caropawn10"]
[WhiteFideId "1113585"]
[WhiteElo "2450"]
[BlackElo "2816"]
[Result "1-0"]
[Round "1"]
[TimeControl "180+1"]
[Date "2023.08.22"]
[WhiteClock "0:01:38"]
[BlackClock "0:00:15"]
[Board "71"]

1. c4 {[%clk 0:03:00]}  Nf6 {[%clk 0:02:58]} 2. Nc3 {[%clk 0:03:00]}  c5 {[%clk 0:02:58]} 3. Nf3 {[%clk 0:02:58]}  Nc6 {[%clk 0:02:58]} 4. g3 {[%clk 0:02:58]}  g6 {[%clk 0:02:57]} 5. Bg2 {[%clk 0:02:58]}  Bg7 {[%clk 0:02:58]} 6. d4 {[%clk 0:02:59]}  cxd4 {[%clk 0:02:58]} 7. Nxd4 {[%clk 0:02:59]}  O-O {[%clk 0:02:55]} 8. O-O {[%clk 0:02:59]}  d6 {[%clk 0:02:54]} 9. Nxc6 {[%clk 0:02:59]}  bxc6 {[%clk 0:02:55]} 10. Bxc6 {[%clk 0:02:59]}  Bh3 {[%clk 0:02:55]} 11. Bg2 {[%clk 0:02:55]}  Bxg2 {[%clk 0:02:54]} 12. Kxg2 {[%clk 0:02:56]}  Rc8 {[%clk 0:02:49]} 13. Qd3 {[%clk 0:02:55]}  Qc7 {[%clk 0:02:45]} 14. Be3 {[%clk 0:02:54]}  Qb7+ {[%clk 0:02:40]} 15. f3 {[%clk 0:02:51]}  Qxb2 {[%clk 0:02:22]} 16. Rab1 {[%clk 0:02:42]}  Qa3 {[%clk 0:02:22]} 17. Nd5 {[%clk 0:02:41]}  Qxd3 {[%clk 0:02:23]} 18. Nxe7+ {[%clk 0:02:41]}  Kh8 {[%clk 0:02:23]} 19. exd3 {[%clk 0:02:41]}  Rc7 {[%clk 0:02:07]} 20. Nd5 {[%clk 0:02:35]}  Nxd5 {[%clk 0:02:07]} 21. cxd5 {[%clk 0:02:35]}  Re8 {[%clk 0:02:07]} 22. Bf4 {[%clk 0:02:28]}  Bd4 {[%clk 0:01:49]} 23. Rfe1 {[%clk 0:02:14]}  Rc2+ {[%clk 0:01:39]} 24. Kh3 {[%clk 0:02:13]}  Rd8 {[%clk 0:00:55]} 25. Rb7 {[%clk 0:02:07]}  Kg8 {[%clk 0:00:42]} 26. Ree7 {[%clk 0:02:00]}  Rf8 {[%clk 0:00:34]} 27. Bxd6 {[%clk 0:01:53]}  Bg1 {[%clk 0:00:34]} 28. g4 {[%clk 0:01:52]}  Rd2 {[%clk 0:00:29]} 29. Re1 {[%clk 0:01:42]}  Bf2 {[%clk 0:00:27]} 30. Bxf8 {[%clk 0:01:38]}  Bxe1 {[%clk 0:00:15]} 31. Bh6 {[%clk 0:01:38]} 1-0


[Site "https://www.chess.com"]